bitfinex/quotes_ETHUSD_20251116
["timestamp","ask_amount","ask_price","bid_price","bid_amount"]
[1763317451270,0.6669,3108.8,3107.6,0.19167448]
[1763317451469,0.6669,3108.8,3107.3,0.405504]
[1763317451877,0.6669,3108.8,3107.3,0.3775]
[1763317452075,0.4812,3108.7,3107.3,0.3775]
[1763317452754,0.4812,3108.7,3107.3,1.5112408]
[1763317452953,0.4812,3108.7,3107.4,0.405504]
[1763317453148,0.4812,3108.7,3107.5,0.19167448]
[1763317454384,0.4812,3108.7,3107.0,1.12721239]
[1763317455153,0.4812,3108.7,3107.0,1.07721239]
[1763317459105,0.4812,3108.7,3106.8,0.001]
[1763317459612,0.405504,3108.6,3106.8,0.001]
[1763317460127,1.6149408,3108.7,3106.8,0.001]
[1763317460128,0.1938,3106.9,3106.8,0.001]
[1763317460421,0.1938,3108.0,3106.8,0.001]
[1763317460627,0.1938,3107.1,3106.8,0.001]
[1763317461740,0.4822,3107.0,3106.8,0.001]
[1763317462382,0.1989,3107.4,3106.8,0.001]
[1763317462807,0.6811,3107.4,3106.8,0.001]
[1763317463202,0.1989,3107.4,3106.8,0.001]
[1763317463413,0.4822,3107.3,3106.8,0.001]
[1763317464842,0.4772,3106.9,3106.4,0.001]
[1763317465125,0.4822,3107.3,3106.4,0.001]
[1763317465126,0.4435,3106.5,3106.4,0.001]
[1763317465694,0.9257,3106.5,3106.4,0.001]
[1763317467184,0.1989,3107.4,3106.4,0.001]
[1763317467185,0.4822,3107.3,3106.4,0.3795]
[1763317467504,0.4822,3107.3,3106.4,0.001]
[1763317467918,0.1989,3107.4,3106.4,0.001]
[1763317468115,0.1989,3107.4,3106.5,1.1337408]
[1763317468433,0.4822,3108.1,3106.6,0.99284107]
[1763317468581,0.676,3108.0,3106.6,1.37134107]
[1763317468987,0.4822,3107.9,3106.6,1.37134107]
[1763317470620,0.1938,3108.0,3106.6,1.37134107]
[1763317470621,0.1938,3108.0,3106.7,0.784004]
[1763317470981,0.676,3108.0,3106.7,0.784004]
[1763317471313,0.676,3108.0,3106.8,0.17768451]
[1763317471677,0.4822,3107.9,3106.8,0.17768451]
[1763317472321,0.4822,3107.9,3106.8,0.55618451]
[1763317472495,0.1938,3108.0,3106.8,0.55618451]
[1763317472892,0.1938,3108.0,3106.9,0.3785]
[1763317473091,0.676,3108.0,3106.8,0.17768451]
[1763317473487,0.676,3108.0,3106.9,0.3785]
[1763317473695,0.4822,3107.9,3106.6,0.405504]
[1763317473898,0.4822,3107.9,3106.4,0.001]
[1763317474285,0.4822,3107.9,3106.4,0.406504]
[1763317478085,0.4822,3107.9,3106.5,0.3785]
[1763317479307,0.4842,3107.9,3106.5,0.3785]
[1763317479640,0.4842,3107.9,3106.6,0.405504]
[1763317479944,0.4842,3107.9,3107.0,1.5392448]
[1763317479945,0.002,3107.9,3107.0,1.5392448]
[1763317480230,0.002,3107.9,3107.8,0.1658]
[1763317481448,0.002,3107.9,3107.8,0.9228]
[1763317481788,0.002,3107.9,3107.8,1.328304]
[1763317483547,0.002,3107.9,3107.6,1.1337408]
[1763317483548,0.002,3107.9,3107.4,0.1658]
[1763317484729,0.002,3107.9,3107.4,0.5443]
[1763317485406,0.002,3107.9,3107.8,0.3785]
[1763317485841,0.002,3107.9,3107.8,0.57027448]
[1763317487131,0.6781,3107.9,3107.2,1.10557789]
[1763317487347,0.6781,3107.9,3106.7,8.79366994]
[1763317487348,1.1603,3107.9,3107.1,0.1658]
[1763317487691,0.6781,3107.9,3107.1,0.1658]
[1763317487891,0.2009,3107.9,3107.1,0.1658]
[1763317488093,0.2009,3107.9,3107.1,0.571304]
[1763317488394,0.002,3107.9,3107.2,0.405504]
[1763317488587,0.002,3107.9,3107.3,0.405504]
[1763317488786,0.002,3107.9,3107.5,0.405504]
[1763317489738,0.002,3107.9,3107.4,0.19177448]
[1763317490034,0.002,3107.9,3107.4,0.57027448]
[1763317490594,0.002,3107.9,3107.4,0.19177448]
[1763317490933,0.6831,3107.9,3107.2,0.405504]
[1763317491796,0.2009,3107.9,3107.1,0.1658]
[1763317491992,0.4674,3107.8,3106.8,1.10557789]
[1763317492207,0.4674,3107.8,3106.6,1.10557789]
[1763317492423,0.2009,3107.9,3106.8,0.405504]
[1763317492624,0.002,3107.9,3107.8,0.5443]
[1763317492831,0.002,3107.9,3107.8,2.0835448]
[1763317493036,0.002,3107.9,3107.8,2.4620448]
[1763317493328,0.002,3107.9,3107.8,3.54976627]
[1763317493779,0.002,3107.9,3107.8,2.38726227]
[1763317493986,0.002,3107.9,3107.6,0.405504]
[1763317494474,0.002,3107.9,3107.5,0.1658]
[1763317496125,0.6663,3107.9,3107.2,1.10557789]
[1763317496329,0.6663,3107.9,3107.1,0.571304]
[1763317496330,0.6663,3107.9,3106.9,1.10557789]
[1763317496565,0.4674,3107.8,3106.7,0.22393187]
[1763317496766,0.4674,3107.8,3106.6,1.10557789]
[1763317497431,0.4674,3107.8,3106.7,0.405504]
[1763317497830,0.4674,3107.8,3106.6,1.10557789]
[1763317498026,0.4674,3107.8,3106.7,0.405504]
[1763317498227,0.002,3107.9,3106.9,1.5392448]
[1763317498538,0.002,3107.9,3107.1,0.405504]
[1763317498735,0.1989,3107.9,3107.1,0.405504]
[1763317498962,0.1989,3107.9,3107.2,0.1658]
[1763317500767,0.002,3107.9,3107.2,0.1658]
[1763317501295,0.4694,3107.9,3107.0,0.99544147]
[1763317501603,0.4694,3107.9,3107.1,0.1658]
[1763317501895,0.4694,3107.9,3106.8,1.10557789]
[1763317502096,0.4694,3107.9,3106.7,1.10557789]
[1763317503160,0.6644,3106.8,3106.6,1.10657789]
[1763317503493,0.6644,3106.8,3106.6,0.001]
[1763317503494,0.4536,3106.7,3106.6,0.001]
[1763317503698,0.921,3106.7,3106.6,0.001]
[1763317503859,0.921,3106.7,3106.4,0.001]
[1763317504055,0.4517,3106.4,3106.1,0.001]
[1763317504292,0.4663,3106.2,3106.1,0.001]
[1763317504803,0.9337,3106.2,3106.1,0.001]
[1763317506170,0.405504,3106.0,3104.6,0.001]
[1763317506369,0.1554,3105.0,3104.6,0.001]
[1763317506613,0.1969,3105.3,3104.6,0.001]
[1763317507167,0.4674,3105.2,3104.6,0.001]
[1763317508476,0.1969,3105.3,3104.6,0.001]
[1763317508692,0.1969,3105.4,3104.6,0.001]
[1763317508890,0.4674,3105.3,3104.6,0.001]
[1763317509099,0.1969,3104.7,3104.6,0.001]
[1763317509524,0.6644,3104.7,3104.6,0.001]
[1763317509733,1.1318,3104.7,3104.6,0.001]
[1763317510024,1.1318,3104.7,3104.3,0.001]
[1763317510223,0.4675,3104.4,3104.3,0.001]
[1763317510615,0.9349,3104.4,3104.3,0.001]
[1763317510936,0.9349,3104.4,3100.8,1.68782608]
[1763317510937,0.9349,3104.4,3103.3,0.1678]
[1763317511088,0.4674,3104.3,3102.0,0.3825]
[1763317511290,0.4674,3104.3,3102.3,1.1337408]
[1763317511701,0.4674,3104.3,3102.4,0.405504]
[1763317511902,0.1969,3104.7,3103.3,0.405504]
[1763317512102,0.1969,3104.9,3104.1,1.1337408]
[1763317512302,0.4674,3105.2,3104.2,0.95489107]
[1763317512484,0.4674,3105.2,3104.2,1.12069107]
[1763317512825,8.61206994,3106.8,3104.2,1.12069107]
[1763317512826,0.4674,3105.7,3104.3,0.788004]
[1763317513028,0.4674,3105.7,3104.3,1.5392448]
[1763317513187,0.4674,3106.2,3104.5,0.405504]
[1763317513387,0.6228,3106.0,3104.5,0.405504]
[1763317513826,0.6228,3106.0,3104.4,0.3825]
[1763317513827,0.6228,3106.0,3104.6,0.3825]
[1763317514029,0.1554,3106.0,3104.9,1.5392448]
[1763317514205,0.6228,3106.0,3105.0,1.0203122]
[1763317514600,0.4674,3105.9,3105.0,1.0203122]
[1763317514799,0.4674,3105.9,3104.7,0.405504]
[1763317516014,0.4674,3105.9,3104.2,1.2995408]
[1763317516233,0.4674,3105.9,3104.3,0.788004]
[1763317516837,0.4674,3105.9,3104.2,0.1658]
[1763317517010,0.405504,3105.8,3104.1,0.001]
[1763317517208,0.1992,3104.3,3104.1,0.001]
[1763317517625,0.473,3104.2,3104.1,0.001]
[1763317517999,0.1992,3104.3,3104.1,0.001]
[1763317518711,0.473,3104.2,3104.1,0.001]
[1763317519838,0.9299,3104.2,3104.1,0.001]
[1763317520526,0.1992,3104.6,3104.1,0.001]
[1763317520725,0.1992,3104.6,3104.1,0.1668]
[1763317521099,0.1992,3105.0,3104.1,0.1668]
[1763317521299,0.1992,3105.0,3104.1,0.001]
[1763317521300,0.4543,3104.2,3104.1,0.001]
[1763317521845,0.478,3104.5,3104.1,0.001]
[1763317522204,0.4543,3104.2,3104.1,0.001]
[1763317522724,0.9323,3104.2,3104.1,0.001]
[1763317522910,0.1992,3105.0,3104.1,0.001]
[1763317523241,0.478,3104.7,3104.1,0.001]
[1763317523652,0.4543,3104.2,3104.1,0.001]
[1763317525141,0.9323,3104.2,3104.1,0.001]
[1763317525817,0.478,3104.6,3104.1,0.001]
[1763317526019,0.478,3104.9,3104.1,0.001]
[1763317526433,0.478,3104.9,3104.1,0.1668]
[1763317527322,0.478,3104.9,3104.1,0.005723]
[1763317528454,0.478,3104.9,3103.8,0.406504]
[1763317528655,0.478,3104.9,3103.8,0.001]
[1763317530023,0.1992,3105.0,3103.9,0.2224]
[1763317530343,0.478,3104.9,3104.0,0.405504]
[1763317530642,0.478,3104.9,3103.8,0.001]
[1763317532509,0.478,3104.9,3103.8,0.2234]
[1763317532657,0.1554,3106.0,3104.8,0.2224]
[1763317532860,0.1554,3106.0,3104.1,1.1337408]
[1763317532861,0.478,3105.8,3104.1,1.1337408]
[1763317533177,0.478,3105.8,3104.3,0.405504]
[1763317534182,0.1855,3104.4,3103.8,0.479]
[1763317534346,0.6398,3104.4,3103.8,0.001]
[1763317535562,0.478,3105.2,3104.3,0.2224]
[1763317535897,0.478,3105.2,3103.8,0.2234]
[1763317536117,0.478,3105.2,3103.8,0.001]
[1763317539604,0.478,3105.5,3104.0,0.405504]
[1763317539765,0.478,3105.1,3104.0,0.405504]
[1763317540102,0.478,3105.1,3103.8,0.001]
[1763317540103,0.478,3105.1,3103.9,0.405504]
[1763317540278,0.478,3105.9,3104.2,0.405504]
[1763317540445,0.478,3105.8,3104.3,0.39856448]
[1763317541184,0.478,3105.8,3104.3,0.17616448]
[1763317541368,0.1554,3106.0,3104.4,0.627904]
[1763317541569,0.002,3106.2,3104.6,1.5392448]
[1763317541769,0.002,3106.2,3104.8,1.5392448]
[1763317542148,0.478,3106.1,3104.8,0.405504]
[1763317542492,0.6398,3104.9,3104.1,1.10557789]
[1763317542786,0.1855,3106.0,3104.0,0.7004]
[1763317542943,0.1855,3106.0,3103.8,2.24031869]
[1763317542944,0.478,3105.9,3103.8,1.10657789]
[1763317543147,0.478,3105.9,3103.8,0.001]
[1763317547153,0.86189811,3105.6,3103.8,0.001]
[1763317547573,2.67606797,3105.8,3103.8,0.001]
[1763317547574,0.478,3105.5,3103.8,0.001]
[1763317548092,0.478,3105.5,3103.9,0.405504]
[1763317548253,0.478,3105.5,3103.9,0.627904]
[1763317548460,0.478,3105.5,3103.8,0.001]
[1763317548656,0.478,3105.5,3103.9,0.2224]
[1763317548868,0.478,3105.5,3104.0,0.405504]
[1763317549489,0.478,3105.5,3104.0,0.2224]
[1763317551696,0.48,3105.5,3104.0,0.2224]
[1763317552191,0.48,3105.5,3103.8,0.001]
[1763317552397,0.48,3105.5,3104.0,0.405504]
[1763317552892,0.48,3105.5,3104.2,0.405504]
[1763317554975,0.002,3105.5,3104.4,0.405504]
[1763317555499,0.002,3105.5,3104.4,0.61558039]
[1763317555795,0.002,3105.5,3104.6,0.405504]
[1763317557701,0.491,3105.5,3104.3,0.405504]
[1763317557865,0.491,3105.5,3104.3,0.627904]
[1763317558688,0.491,3105.5,3104.3,0.405504]
[1763317558878,0.491,3105.5,3104.4,0.2224]
[1763317559466,0.491,3105.5,3104.3,0.405504]
[1763317559666,0.491,3105.5,3104.3,0.69222627]
[1763317560318,0.491,3105.5,3104.2,1.10557789]
[1763317560471,0.002,3105.5,3104.3,0.2224]
[1763317560968,0.491,3105.5,3104.3,0.2224]
[1763317562164,0.002,3105.5,3104.3,1.73348189]
[1763317562370,0.002,3105.5,3104.5,0.405504]
[1763317562806,0.002,3105.5,3104.7,0.405504]
[1763317564304,0.002,3105.5,3103.8,8.66487724]
[1763317564305,0.6871,3104.8,3104.2,1.10557789]
[1763317564504,0.6871,3104.8,3103.8,0.001]
[1763317564505,0.496,3104.2,3103.8,0.001]
[1763317564690,0.1911,3104.8,3103.8,0.001]
[1763317564691,0.496,3104.1,3103.8,0.001]
[1763317564894,0.489,3104.7,3103.8,0.001]
[1763317565100,0.1911,3104.8,3103.8,0.001]
[1763317565301,0.6801,3104.8,3103.7,0.13192455]
[1763317565526,0.6801,3104.8,3103.5,0.001]
[1763317565527,0.489,3104.7,3103.5,0.406504]
[1763317565823,0.14916491,3104.8,3103.6,0.26468227]
[1763317567320,0.14916491,3104.8,3103.7,0.1739]
[1763317568994,0.491,3105.5,3104.7,0.1739]
[1763317570616,0.002,3104.8,3104.7,0.579404]
[1763317571136,0.002,3104.8,3104.7,0.753304]
[1763317571831,0.002,3104.8,3104.7,0.93919219]
[1763317572028,0.002,3104.8,3104.7,0.753304]
[1763317575230,0.002,3104.8,3104.7,5.10796791]
[1763317575537,0.002,3105.2,3104.8,1.5392448]
[1763317575698,0.002,3105.2,3105.1,11.26697711]
[1763317576196,0.002,3105.2,3105.1,11.44087711]
[1763317576404,0.002,3105.2,3105.1,12.75353777]
[1763317576919,0.002,3105.2,3105.1,3.97572508]
[1763317577119,0.002,3105.2,3105.1,1.1337408]
[1763317577904,0.002,3105.2,3105.1,1.5392448]
[1763317578235,0.002,3105.2,3105.1,1.1337408]
[1763317578439,0.9516,3105.2,3104.5,1.12381962]
[1763317578633,0.9516,3105.2,3104.5,1.23733025]
[1763317579002,0.9516,3105.2,3104.6,0.405504]
[1763317579426,0.002,3105.2,3104.6,0.405504]
[1763317580331,0.48096886,3105.3,3104.5,0.37825436]
[1763317580513,0.46138891,3105.3,3104.5,0.37825436]
[1763317580842,0.46138891,3105.3,3104.5,1.48483711]
[1763317581411,0.6474,3104.6,3104.1,2.25756042]
[1763317581614,0.6474,3104.6,3104.1,1.12381962]
[1763317582118,0.6474,3104.6,3103.9,1.12381962]
[1763317582119,0.1903,3104.6,3103.9,1.12381962]
[1763317582324,0.1903,3104.6,3104.0,0.405504]
[1763317583444,0.4551,3105.0,3104.0,0.405504]
[1763317583606,0.1903,3104.9,3104.0,0.71794933]
[1763317588950,0.1903,3104.9,3104.0,0.71894933]
[1763317589572,0.4551,3104.8,3104.0,0.001]
[1763317590675,0.4551,3105.2,3104.2,1.1337408]
[1763317590966,0.4551,3105.2,3104.3,0.405504]
[1763317591141,0.4551,3105.2,3104.3,1.53517171]
[1763317592333,0.4551,3105.2,3104.3,0.405504]
[1763317592644,0.6474,3104.4,3104.0,0.001]
[1763317593654,0.1903,3104.4,3104.0,0.001]
[1763317593834,0.1903,3104.6,3104.0,0.001]
[1763317595166,0.16036177,3104.6,3103.9,0.38351148]
[1763317596142,0.16036177,3104.6,3103.9,1.49061994]
[1763317598146,0.4571,3104.0,3103.9,0.38351148]
[1763317598348,0.4571,3104.0,3103.6,0.001]
[1763317598605,0.4551,3104.2,3103.6,0.001]
[1763317600220,0.61546177,3104.6,3103.6,0.001]
[1763317600512,0.61546177,3104.6,3103.8,0.405504]
[1763317601025,0.4551,3104.5,3103.8,0.405504]
[1763317601514,0.16036177,3104.6,3103.8,0.405504]
[1763317601867,0.61546177,3104.6,3103.8,0.405504]
[1763317602068,0.61546177,3104.6,3103.6,1.12481962]
[1763317602281,0.4551,3104.5,3103.6,0.001]
[1763317602935,0.4571,3103.7,3103.6,0.001]
[1763317603287,0.9122,3103.7,3103.6,0.001]
[1763317604781,0.4551,3104.2,3103.6,0.001]
[1763317605526,0.4571,3103.7,3103.6,0.001]
[1763317605884,0.9122,3103.7,3103.6,0.001]
[1763317606511,0.16036177,3104.6,3103.6,0.001]
[1763317606512,0.4551,3104.1,3103.6,0.001]
[1763317607421,0.16036177,3104.6,3103.6,0.001]
[1763317607629,0.61746177,3104.6,3103.6,0.001]
[1763317607821,0.61746177,3104.6,3103.7,0.405504]
[1763317608022,0.4551,3104.5,3103.7,0.405504]
[1763317608344,0.4551,3104.5,3103.6,0.001]
[1763317610451,0.16236177,3104.6,3103.7,0.2335]
[1763317612255,0.4792,3104.5,3103.6,0.001]
[1763317612435,0.4792,3104.5,3103.8,0.405504]
[1763317615762,0.002,3104.6,3104.0,0.405504]
[1763317616360,0.002,3104.6,3104.2,0.405504]
[1763317617060,0.4812,3104.6,3104.2,0.405504]
[1763317617362,0.4758,3104.3,3103.7,0.88375167]
[1763317617565,0.4758,3104.2,3103.6,0.001]
[1763317619470,0.4792,3104.1,3103.6,0.001]
[1763317620946,0.4792,3104.4,3103.6,0.001]
[1763317621247,0.002,3104.6,3103.7,0.639004]
[1763317621443,0.002,3104.6,3103.8,0.28975644]
[1763317621762,0.4792,3104.5,3103.9,0.405504]
[1763317624193,0.002,3104.6,3104.4,0.2993]
[1763317624347,0.002,3104.6,3104.5,9.06901669]
[1763317624546,0.002,3104.6,3104.5,9.30251669]
[1763317624791,0.002,3104.6,3104.5,10.35173032]
[1763317625142,0.002,3104.6,3104.5,1.68821763]
[1763317625375,0.957,3104.6,3104.0,1.12381962]
[1763317625694,0.4758,3104.5,3103.7,1.12381962]
[1763317625885,0.955,3104.5,3103.8,0.405504]
[1763317626085,0.955,3104.5,3103.7,1.12381962]
[1763317626287,0.955,3104.5,3103.6,0.001]
[1763317626288,0.4792,3104.4,3103.6,0.001]
[1763317626487,0.002,3104.6,3103.6,0.2345]
[1763317626793,0.002,3104.6,3103.9,1.5392448]
[1763317626987,0.002,3104.6,3104.0,0.99692575]
[1763317627521,0.002,3104.6,3104.2,0.405504]
[1763317628078,0.002,3104.6,3104.5,0.639004]
[1763317628412,0.002,3104.6,3104.1,0.0658]
[1763317628413,0.4778,3104.6,3104.1,0.0658]
[1763317628620,0.4758,3104.4,3104.1,0.405504]
[1763317629118,0.4758,3104.4,3103.7,0.405504]
[1763317629715,0.955,3104.4,3103.7,0.60655636]
[1763317630114,0.4792,3104.3,3103.7,0.60655636]
[1763317630410,0.4792,3104.3,3103.6,0.001]
[1763317630798,0.4758,3103.7,3103.6,0.001]
[1763317631004,0.4792,3104.3,3103.6,0.001]
[1763317631204,0.002,3104.6,3104.3,1.5392448]
[1763317631403,0.002,3105.0,3104.9,1.5392448]
[1763317631607,0.002,3105.5,3105.0,0.405504]
[1763317631793,0.002,3105.5,3105.4,4.75944187]
[1763317632115,0.002,3105.5,3105.4,13.65645456]
[1763317632418,0.002,3105.7,3105.5,1.5392448]
[1763317632622,0.002,3105.7,3105.6,0.639004]
[1763317632779,0.002,3105.7,3105.6,1.44912975]
[1763317632979,0.002,3105.7,3105.6,0.405504]
[1763317636415,0.002,3105.7,3105.6,0.639004]
[1763317637316,0.002,3105.7,3105.6,0.405504]
[1763317638099,0.002,3105.7,3105.6,0.639004]
[1763317638427,0.002,3105.7,3105.6,0.405504]
[1763317638631,0.946,3105.7,3104.5,1.11853792]
[1763317638820,0.4852,3105.6,3104.5,0.27958412]
[1763317638995,0.002,3105.7,3104.7,8.65778808]
[1763317639195,0.002,3105.7,3104.8,0.405504]
[1763317639417,0.4872,3105.7,3104.8,0.405504]
[1763317639618,0.4872,3105.7,3104.2,1.18433792]
[1763317639619,0.002,3105.7,3105.6,0.639004]
[1763317642436,0.4858,3105.7,3105.6,0.405504]
[1763317642740,0.9447,3105.7,3104.6,1.11853792]
[1763317642942,0.4838,3105.1,3104.2,1.18433792]
[1763317643242,0.4838,3105.1,3104.2,0.9842126]
[1763317643437,0.002,3105.7,3103.6,0.001]
[1763317643438,0.5946,3104.3,3103.6,0.001]
[1763317644007,0.4589,3104.2,3104.1,0.001]
[1763317644438,0.9427,3104.2,3104.1,0.001]
[1763317645708,0.1813,3104.3,3104.1,0.001]
[1763317646124,0.6402,3104.3,3104.1,0.001]
[1763317646331,0.4838,3104.2,3104.1,0.001]
[1763317646530,0.9427,3104.2,3104.1,0.001]
[1763317647028,0.4838,3104.2,3104.1,0.001]
[1763317647342,0.9427,3104.2,3104.1,0.001]
[1763317650955,0.1813,3104.3,3104.1,0.001]
[1763317651158,0.4589,3104.7,3104.1,0.001]
[1763317651473,0.1813,3104.8,3104.1,0.0668]
[1763317651753,0.6402,3104.8,3104.1,0.0668]
[1763317652123,0.4589,3104.7,3104.1,0.0668]
[1763317653117,0.4589,3104.7,3104.1,0.001]
[1763317653319,0.4838,3104.2,3104.1,0.001]
[1763317654416,0.4589,3104.5,3104.1,0.001]
[1763317655834,0.4838,3104.2,3104.1,0.001]
[1763317656258,0.9427,3104.2,3104.1,0.001]
[1763317657837,0.4838,3104.2,3104.1,0.001]
[1763317658028,0.9427,3104.2,3104.1,0.001]
[1763317666009,0.4589,3104.6,3104.1,0.001]
[1763317666903,0.1813,3104.8,3104.1,0.0668]
[1763317667400,0.6402,3104.8,3104.1,0.0668]
[1763317669969,0.4589,3104.7,3104.1,0.0668]
[1763317672332,0.4589,3104.7,3104.1,0.001]
[1763317678381,0.4589,3104.7,3103.8,1.11953792]
[1763317678578,0.1813,3104.8,3103.9,1.57746579]
[1763317678799,0.1813,3104.8,3104.5,1.1337408]
[1763317679200,0.641,3104.8,3104.5,1.1337408]
[1763317679482,0.4589,3104.6,3104.5,1.1337408]
[1763317681182,0.4589,3104.6,3104.0,0.001]
[1763317681183,0.9186,3104.6,3104.0,0.001]
[1763317681447,0.4589,3103.9,3103.5,0.001]
[1763317681584,0.4589,3103.6,3102.3,1.11853792]
[1763317681923,0.4589,3102.3,3101.9,1.11853792]
[1763317682090,0.4589,3102.2,3101.8,1.11853792]
[1763317682406,0.4589,3101.7,3101.6,6.24997702]
[1763317682609,0.4589,3101.7,3101.6,0.16804697]
[1763317682832,0.4589,3101.7,3100.5,1.11853792]
[1763317682833,0.9186,3101.7,3100.5,1.11853792]
[1763317683037,0.4589,3101.2,3099.8,1.11853792]
[1763317683251,0.4589,3101.2,3099.8,0.34519269]
[1763317683547,0.4597,3101.1,3099.6,0.65608573]
[1763317683747,0.4597,3101.1,3099.6,0.405504]
[1763317684048,0.4597,3101.1,3099.5,0.4046]
[1763317684936,0.4597,3101.1,3099.6,0.405504]
[1763317685139,0.4597,3101.1,3099.5,0.4046]
[1763317685350,0.649,3099.6,3099.0,0.1708]
[1763317685532,0.649,3099.6,3098.2,0.33005549]
[1763317685533,1.1337408,3099.0,3096.6,1.28670901]
[1763317685730,1.1337408,3099.0,3097.2,0.01531486]
[1763317685731,0.405504,3098.8,3097.2,0.01531486]
[1763317685919,0.405504,3098.8,3096.6,8.68849282]
[1763317686116,0.4597,3098.7,3096.7,2.40719008]
[1763317686333,0.4597,3098.7,3097.4,1.1337408]
[1763317686537,0.4597,3098.7,3096.8,9.09309282]
[1763317686909,0.4597,3098.7,3096.9,1.5383408]
[1763317687110,0.4597,3098.7,3097.0,9.71117618]
[1763317687346,0.4597,3098.7,3097.0,1.02268336]
[1763317687640,0.4597,3098.7,3096.7,0.86884928]
[1763317687641,0.4597,3098.7,3097.6,1.1337408]
[1763317687809,0.4597,3098.7,3097.7,0.405504]
[1763317688217,0.4597,3098.7,3097.1,0.4704]
[1763317688218,0.1901,3097.8,3097.1,0.0658]
[1763317688631,0.1901,3098.9,3097.1,0.0658]
[1763317688632,0.4597,3098.8,3097.9,0.405504]
[1763317688815,0.4597,3098.8,3097.9,1.46873776]
[1763317689186,0.4597,3098.7,3097.1,0.0658]
[1763317689323,0.4597,3098.7,3097.3,0.405504]
[1763317689827,0.4097,3098.7,3097.3,0.405504]
[1763317690346,0.4097,3098.7,3097.3,9.09399682]
[1763317691044,0.4097,3098.7,3097.3,9.54859682]
[1763317691244,0.1901,3098.9,3097.9,1.5392448]
[1763317692634,0.4597,3099.4,3098.0,0.4546]
[1763317692838,0.1901,3098.9,3098.0,0.4546]
[1763317693143,0.4597,3099.5,3098.2,0.405504]
[1763317693461,0.4597,3099.5,3098.6,1.5392448]
[1763317693742,0.4597,3099.5,3098.8,0.405504]
[1763317694755,0.4597,3099.5,3098.7,1.02277376]
[1763317694953,0.4597,3099.5,3098.7,1.42827776]
[1763317694954,0.1901,3098.8,3098.7,1.42827776]
[1763317695255,0.4597,3099.5,3098.7,1.42827776]
[1763317695615,0.4,3098.6,3096.7,0.86884928]
[1763317695870,0.1949,3098.8,3096.3,0.09083496]
[1763317695871,0.4658,3098.3,3096.9,0.0658]
[1763317696157,0.4658,3098.3,3097.2,1.1337408]
[1763317696357,0.46,3098.2,3097.2,1.1337408]
[1763317696510,0.46,3098.2,3098.0,0.001]
[1763317696931,0.4664,3098.1,3098.0,0.001]
[1763317697479,0.9264,3098.1,3097.7,0.001]
[1763317697608,0.5899,3097.8,3097.7,0.001]
[1763317697812,1.0499,3097.8,3097.7,0.001]
[1763317699253,1.0499,3097.8,3097.4,0.001]
[1763317699559,0.4657,3097.5,3097.4,0.001]
[1763317699921,0.9257,3097.5,3097.4,0.001]
[1763317702137,0.9257,3097.5,3096.3,0.09083496]
[1763317702448,0.5788,3096.4,3096.3,0.09083496]
[1763317702949,1.0553,3096.4,3096.3,0.09083496]
[1763317703524,0.1831,3096.6,3096.3,0.09083496]
[1763317704049,0.4765,3096.5,3096.3,0.09083496]
[1763317704278,0.4765,3096.5,3095.7,1.1337408]
[1763317704279,0.4616,3096.4,3094.8,0.1104]
[1763317704485,0.4616,3096.4,3095.1,7.94192342]
[1763317704681,0.4616,3096.4,3095.2,1.97426314]
[1763317704846,0.1831,3096.8,3095.6,7.94192342]
[1763317705047,0.1831,3096.8,3095.7,0.405504]
[1763317705280,0.4765,3096.7,3095.4,0.4633]
[1763317705581,0.4765,3096.7,3095.2,1.97426314]
[1763317705743,0.4765,3096.7,3095.3,0.99161866]
[1763317706085,0.1831,3096.8,3095.6,7.94192342]
[1763317706288,0.6596,3096.8,3095.7,0.405504]
[1763317706584,0.6596,3096.8,3095.7,1.5392448]
[1763317706945,0.4765,3096.7,3095.7,1.5392448]
[1763317707273,0.4765,3096.7,3095.8,0.94811682]
[1763317708023,0.4765,3096.7,3095.9,0.405504]
[1763317708456,0.1831,3096.8,3094.0,0.168]
[1763317708457,0.4765,3096.6,3094.0,0.168]
[1763317708660,0.4765,3096.6,3095.1,7.94192342]
[1763317708845,0.4765,3096.6,3094.0,0.80051646]
[1763317708846,0.1831,3096.7,3095.7,1.1337408]
[1763317709046,0.1831,3096.7,3095.5,7.94192342]
[1763317709047,0.1831,3096.7,3095.6,1.5392448]
[1763317709343,0.1831,3096.7,3095.6,2.0025448]
[1763317709543,0.1831,3096.7,3095.7,0.4633]
[1763317709971,0.84934749,3099.3,3096.6,8.51242342]
[1763317710183,0.1831,3100.1,3097.7,7.94192342]
[1763317710184,0.1831,3098.9,3097.7,7.94192342]
[1763317710383,0.1831,3098.9,3096.7,0.943]
[1763317710384,0.1831,3098.9,3097.8,0.405504]
[1763317710568,0.4616,3097.8,3096.6,0.0908]
[1763317710753,0.4765,3098.8,3097.0,0.405504]
[1763317710953,0.4765,3098.7,3097.2,0.405504]
[1763317711843,0.4765,3098.7,3096.6,1.2245408]
[1763317711844,0.4765,3098.7,3096.6,0.0908]
[1763317712086,0.4765,3098.7,3096.7,0.405504]
[1763317712087,0.405504,3098.6,3096.7,0.405504]
[1763317712388,0.4765,3098.5,3096.7,0.405504]
[1763317712947,0.4765,3098.5,3096.6,0.0908]